[Event "Titled Tuesday Blitz November 22 Late 2022"]
[White "Machidon, Cristi"]
[Black "Przybylski, Wojciech"]
[WhiteFideId "13904590"]
[BlackFideId "1117599"]
[WhiteElo "2333"]
[BlackElo "2221"]
[Result "0-1"]
[Round "11"]
[TimeControl "180+1"]
[Date "2022.11.23"]
[WhiteClock "0:00:22"]
[BlackClock "0:01:30"]

1. e4 {[%clk 0:02:56]}  e5 {[%clk 0:02:59]} 2. Bc4 {[%clk 0:02:56]}  Nf6 {[%clk 0:02:59]} 3. Nc3 {[%clk 0:02:56]}  Nc6 {[%clk 0:02:57]} 4. d3 {[%clk 0:02:55]}  Bb4 {[%clk 0:02:56]} 5. Ne2 {[%clk 0:02:54]}  O-O {[%clk 0:02:56]} 6. a3 {[%clk 0:02:53]}  Be7 {[%clk 0:02:55]} 7. O-O {[%clk 0:02:51]}  d6 {[%clk 0:02:53]} 8. Ng3 {[%clk 0:02:41]}  Nd4 {[%clk 0:02:50]} 9. f4 {[%clk 0:02:39]}  Bg4 {[%clk 0:02:48]} 10. Qd2 {[%clk 0:02:38]}  exf4 {[%clk 0:02:48]} 11. Rxf4 {[%clk 0:02:37]}  Be6 {[%clk 0:02:46]} 12. Bxe6 {[%clk 0:02:29]}  fxe6 {[%clk 0:02:46]} 13. Qf2 {[%clk 0:02:22]}  c5 {[%clk 0:02:38]} 14. Be3 {[%clk 0:02:13]}  Ng4 {[%clk 0:02:35]} 15. Rxf8+ {[%clk 0:02:11]}  Bxf8 {[%clk 0:02:35]} 16. Bxd4 {[%clk 0:02:02]}  Nxf2 {[%clk 0:02:34]} 17. Bxf2 {[%clk 0:02:03]}  Be7 {[%clk 0:02:32]} 18. e5 {[%clk 0:02:02]}  d5 {[%clk 0:02:30]} 19. Rf1 {[%clk 0:02:00]}  b6 {[%clk 0:02:29]} 20. Nge2 {[%clk 0:01:55]}  Qd7 {[%clk 0:02:28]} 21. Nf4 {[%clk 0:01:45]}  Rf8 {[%clk 0:02:29]} 22. Nce2 {[%clk 0:01:44]}  Bg5 {[%clk 0:02:26]} 23. Bg3 {[%clk 0:01:43]}  a5 {[%clk 0:02:17]} 24. h4 {[%clk 0:01:35]}  Be7 {[%clk 0:02:15]} 25. Rf3 {[%clk 0:01:10]}  Rf5 {[%clk 0:02:13]} 26. Kh2 {[%clk 0:01:05]}  a4 {[%clk 0:02:08]} 27. d4 {[%clk 0:00:58]}  Rf8 {[%clk 0:02:00]} 28. c4 {[%clk 0:00:39]}  dxc4 {[%clk 0:01:58]} 29. d5 {[%clk 0:00:38]}  exd5 {[%clk 0:01:55]} 30. Nc3 {[%clk 0:00:38]}  Rxf4 {[%clk 0:01:46]} 31. Rxf4 {[%clk 0:00:27]}  d4 {[%clk 0:01:46]} 32. e6 {[%clk 0:00:26]}  Qxe6 {[%clk 0:01:42]} 33. Re4 {[%clk 0:00:25]}  Qf7 {[%clk 0:01:38]} 34. Nxa4 {[%clk 0:00:22]}  Bd8 {[%clk 0:01:30]} 0-1


[Site "https://www.chess.com"]

[Event "Titled Tuesday Blitz November 22 Late 2022"]
[White "Martinez Alcantara, Jose Eduardo"]
[Black "Gadimbayli, Abdulla"]
[WhiteFideId "3805662"]
[BlackFideId "13404938"]
[WhiteElo "2705"]
[BlackElo "2399"]
[Result "1-0"]
[Round "11"]
[TimeControl "180+1"]
[Date "2022.11.23"]
[WhiteClock "0:01:47"]
[BlackClock "0:00:14"]

1. e4 {[%clk 0:03:00]}  e5 {[%clk 0:02:55]} 2. Nf3 {[%clk 0:03:00]}  d5 {[%clk 0:02:55]} 3. exd5 {[%clk 0:02:56]}  e4 {[%clk 0:02:56]} 4. Qe2 {[%clk 0:02:57]}  Nf6 {[%clk 0:02:56]} 5. d3 {[%clk 0:02:57]}  Bb4+ {[%clk 0:02:57]} 6. Nbd2 {[%clk 0:02:57]}  O-O {[%clk 0:02:58]} 7. dxe4 {[%clk 0:02:57]}  Re8 {[%clk 0:02:54]} 8. c3 {[%clk 0:02:49]}  Bd6 {[%clk 0:02:50]} 9. Qc4 {[%clk 0:02:44]}  Nxe4 {[%clk 0:02:21]} 10. Nxe4 {[%clk 0:02:44]}  f5 {[%clk 0:02:22]} 11. Ng5 {[%clk 0:02:36]}  fxe4 {[%clk 0:02:14]} 12. Ne6 {[%clk 0:02:37]}  Qe7 {[%clk 0:02:02]} 13. Qxe4 {[%clk 0:02:36]}  c6 {[%clk 0:02:00]} 14. Bd3 {[%clk 0:02:34]}  g6 {[%clk 0:01:58]} 15. c4 {[%clk 0:02:33]}  Qf6 {[%clk 0:01:18]} 16. O-O {[%clk 0:02:30]}  Bxe6 {[%clk 0:01:18]} 17. dxe6 {[%clk 0:02:30]}  Rxe6 {[%clk 0:01:18]} 18. Bg5 {[%clk 0:02:19]}  Qf7 {[%clk 0:01:05]} 19. Qh4 {[%clk 0:02:19]}  Nd7 {[%clk 0:01:03]} 20. f4 {[%clk 0:02:19]}  Re3 {[%clk 0:01:00]} 21. Rad1 {[%clk 0:02:18]}  Nc5 {[%clk 0:00:57]} 22. Bb1 {[%clk 0:02:18]}  Ne4 {[%clk 0:00:46]} 23. Bxe4 {[%clk 0:02:13]}  Bc5 {[%clk 0:00:46]} 24. b4 {[%clk 0:02:04]}  Rh3+ {[%clk 0:00:24]} 25. bxc5 {[%clk 0:02:04]}  Rxh4 {[%clk 0:00:25]} 26. Bxh4 {[%clk 0:02:04]}  Re8 {[%clk 0:00:25]} 27. Bf3 {[%clk 0:02:03]}  Kg7 {[%clk 0:00:24]} 28. Bf2 {[%clk 0:02:03]}  Qxc4 {[%clk 0:00:20]} 29. Rd7+ {[%clk 0:02:03]}  Kh6 {[%clk 0:00:20]} 30. f5 {[%clk 0:01:58]}  gxf5 {[%clk 0:00:18]} 31. Bd4 {[%clk 0:01:59]}  Re6 {[%clk 0:00:16]} 32. h4 {[%clk 0:01:58]}  f4 {[%clk 0:00:15]} 33. Bg4 {[%clk 0:01:56]}  Rg6 {[%clk 0:00:15]} 34. Bf5 {[%clk 0:01:48]}  Rg3 {[%clk 0:00:14]} 35. Rxh7# {[%clk 0:01:47]} 1-0


[Site "https://www.chess.com"]

[Event "Titled Tuesday Blitz November 22 Late 2022"]
[White "Melkumyan, Hrant"]
[Black "Chigaev, Maksim"]
[WhiteFideId "13302485"]
[BlackFideId "4108116"]
[WhiteElo "2604"]
[BlackElo "2541"]
[Result "0-1"]
[Round "11"]
[TimeControl "180+1"]
[Date "2022.11.23"]
[WhiteClock "0:00:01"]
[BlackClock "0:00:02"]

1. c4 {[%clk 0:02:56]}  e5 {[%clk 0:02:59]} 2. g3 {[%clk 0:02:56]}  c6 {[%clk 0:02:59]} 3. Nf3 {[%clk 0:02:54]}  e4 {[%clk 0:03:00]} 4. Nd4 {[%clk 0:02:54]}  d5 {[%clk 0:03:00]} 5. cxd5 {[%clk 0:02:55]}  Qxd5 {[%clk 0:03:01]} 6. Nc2 {[%clk 0:02:55]}  Nf6 {[%clk 0:03:01]} 7. Nc3 {[%clk 0:02:54]}  Qe5 {[%clk 0:03:02]} 8. Bg2 {[%clk 0:02:54]}  Na6 {[%clk 0:03:02]} 9. O-O {[%clk 0:02:51]}  Be7 {[%clk 0:03:02]} 10. d4 {[%clk 0:02:49]}  exd3 {[%clk 0:03:01]} 11. exd3 {[%clk 0:02:50]}  Bg4 {[%clk 0:02:59]} 12. Qd2 {[%clk 0:02:46]}  O-O {[%clk 0:02:54]} 13. Re1 {[%clk 0:02:45]}  Qc7 {[%clk 0:02:53]} 14. d4 {[%clk 0:02:31]}  Rad8 {[%clk 0:02:50]} 15. Qd3 {[%clk 0:02:12]}  Nc5 {[%clk 0:02:04]} 16. Qc4 {[%clk 0:02:12]}  Be6 {[%clk 0:01:47]} 17. Qe2 {[%clk 0:02:04]}  Na6 {[%clk 0:01:46]} 18. Bf4 {[%clk 0:02:00]}  Qb6 {[%clk 0:01:46]} 19. Qd2 {[%clk 0:01:47]}  Nb4 {[%clk 0:01:39]} 20. Be5 {[%clk 0:01:27]}  Nxc2 {[%clk 0:01:29]} 21. Qxc2 {[%clk 0:01:28]}  Ng4 {[%clk 0:01:29]} 22. Bf4 {[%clk 0:01:12]}  Rxd4 {[%clk 0:01:18]} 23. h3 {[%clk 0:00:45]}  Rxf4 {[%clk 0:01:18]} 24. gxf4 {[%clk 0:00:46]}  Nxf2 {[%clk 0:01:18]} 25. Na4 {[%clk 0:00:46]}  Nxh3+ {[%clk 0:00:47]} 26. Kh2 {[%clk 0:00:45]}  Qc7 {[%clk 0:00:20]} 27. Bxh3 {[%clk 0:00:36]}  Qxf4+ {[%clk 0:00:20]} 28. Kh1 {[%clk 0:00:36]}  Qh4 {[%clk 0:00:04]} 29. Qh2 {[%clk 0:00:37]}  Qxa4 {[%clk 0:00:04]} 30. Bxe6 {[%clk 0:00:35]}  fxe6 {[%clk 0:00:05]} 31. Qh3 {[%clk 0:00:31]}  Bf6 {[%clk 0:00:04]} 32. b3 {[%clk 0:00:27]}  Qf4 {[%clk 0:00:03]} 33. Qxe6+ {[%clk 0:00:23]}  Kh8 {[%clk 0:00:03]} 34. Rad1 {[%clk 0:00:24]}  Qh4+ {[%clk 0:00:03]} 35. Kg2 {[%clk 0:00:24]}  Qg5+ {[%clk 0:00:04]} 36. Kh1 {[%clk 0:00:25]}  Qh5+ {[%clk 0:00:04]} 37. Kg2 {[%clk 0:00:25]}  Qg6+ {[%clk 0:00:04]} 38. Kh1 {[%clk 0:00:25]}  h6 {[%clk 0:00:04]} 39. Qh3 {[%clk 0:00:20]}  Re8 {[%clk 0:00:03]} 40. Rg1 {[%clk 0:00:12]}  Qe4+ {[%clk 0:00:03]} 41. Rg2 {[%clk 0:00:13]}  Kh7 {[%clk 0:00:03]} 42. Rf1 {[%clk 0:00:10]}  Re6 {[%clk 0:00:02]} 43. Qg3 {[%clk 0:00:09]}  Re7 {[%clk 0:00:01]} 44. Rxf6 {[%clk 0:00:08]}  Qe1+ {[%clk 0:00:02]} 45. Rf1 {[%clk 0:00:01]}  Qxf1+ {[%clk 0:00:02]} 46. Kh2 {[%clk 0:00:02]}  Qf5 {[%clk 0:00:03]} 47. Rf2 {[%clk 0:00:01]}  Qe5 {[%clk 0:00:02]} 48. Re2 {[%clk 0:00:01]}  Qxg3+ {[%clk 0:00:02]} 0-1


[Site "https://www.chess.com"]

[Event "Titled Tuesday Blitz November 22 Late 2022"]
[White "Milchev, Nikolay"]
[Black "Khandelwal, Ankush"]
[WhiteFideId "2906090"]
[BlackFideId "413470"]
[WhiteElo "2449"]
[BlackElo "2271"]
[Result "1-0"]
[Round "11"]
[TimeControl "180+1"]
[Date "2022.11.23"]
[WhiteClock "0:01:52"]
[BlackClock "0:00:44"]

1. Nf3 {[%clk 0:03:00]}  Nf6 {[%clk 0:02:58]} 2. c4 {[%clk 0:03:01]}  g6 {[%clk 0:02:57]} 3. Nc3 {[%clk 0:03:02]}  Bg7 {[%clk 0:02:57]} 4. e4 {[%clk 0:03:02]}  d6 {[%clk 0:02:57]} 5. d4 {[%clk 0:03:02]}  O-O {[%clk 0:02:57]} 6. h3 {[%clk 0:03:02]}  Na6 {[%clk 0:02:40]} 7. Be3 {[%clk 0:03:02]}  e5 {[%clk 0:02:33]} 8. dxe5 {[%clk 0:03:02]}  dxe5 {[%clk 0:02:23]} 9. c5 {[%clk 0:03:03]}  Qe7 {[%clk 0:02:16]} 10. Bxa6 {[%clk 0:03:01]}  bxa6 {[%clk 0:02:17]} 11. O-O {[%clk 0:03:00]}  Rb8 {[%clk 0:02:17]} 12. Qc2 {[%clk 0:03:00]}  Nd7 {[%clk 0:02:14]} 13. Nd5 {[%clk 0:02:59]}  Qd8 {[%clk 0:02:14]} 14. c6 {[%clk 0:02:56]}  Nb6 {[%clk 0:02:13]} 15. Rfd1 {[%clk 0:02:51]}  Nxd5 {[%clk 0:02:10]} 16. Rxd5 {[%clk 0:02:51]}  Qe8 {[%clk 0:02:02]} 17. Bxa7 {[%clk 0:02:51]}  Rb5 {[%clk 0:02:00]} 18. Bc5 {[%clk 0:02:50]}  Qxc6 {[%clk 0:02:00]} 19. a4 {[%clk 0:02:46]}  Rb8 {[%clk 0:01:50]} 20. Qc3 {[%clk 0:02:41]}  Re8 {[%clk 0:01:49]} 21. Nxe5 {[%clk 0:02:38]}  Qe6 {[%clk 0:01:30]} 22. Bd4 {[%clk 0:02:25]}  Bb7 {[%clk 0:01:22]} 23. Rc5 {[%clk 0:02:25]}  Bxe4 {[%clk 0:01:19]} 24. Re1 {[%clk 0:02:26]}  Ba8 {[%clk 0:01:15]} 25. Re3 {[%clk 0:02:26]}  Qa2 {[%clk 0:01:04]} 26. Rxc7 {[%clk 0:02:24]}  Rxb2 {[%clk 0:01:00]} 27. Qxb2 {[%clk 0:02:22]}  Qxa4 {[%clk 0:00:58]} 28. Nf3 {[%clk 0:02:02]}  Bxf3 {[%clk 0:00:46]} 29. Rxe8+ {[%clk 0:02:00]}  Qxe8 {[%clk 0:00:47]} 30. Bxg7 {[%clk 0:01:52]}  Qe1+ {[%clk 0:00:44]} 31. Kh2 {[%clk 0:01:52]} 1-0


[Site "https://www.chess.com"]

[Event "Titled Tuesday Blitz November 22 Late 2022"]
[White "Pakleza, Zbigniew"]
[Black "Sokolovsky, Yahli"]
[WhiteFideId "1119290"]
[BlackFideId "2820242"]
[WhiteElo "2411"]
[BlackElo "2316"]
[Result "1-0"]
[Round "11"]
[TimeControl "180+1"]
[Date "2022.11.23"]
[WhiteClock "0:00:55"]
[BlackClock "0:00:04"]

1. d4 {[%clk 0:02:59]}  d6 {[%clk 0:03:00]} 2. Nf3 {[%clk 0:02:59]}  g6 {[%clk 0:03:00]} 3. Bf4 {[%clk 0:02:59]}  Bg7 {[%clk 0:03:01]} 4. e3 {[%clk 0:03:00]}  Nf6 {[%clk 0:02:56]} 5. h3 {[%clk 0:03:00]}  O-O {[%clk 0:02:50]} 6. Be2 {[%clk 0:03:01]}  c5 {[%clk 0:02:47]} 7. c3 {[%clk 0:03:01]}  cxd4 {[%clk 0:02:37]} 8. cxd4 {[%clk 0:03:00]}  Nc6 {[%clk 0:02:36]} 9. Nc3 {[%clk 0:03:00]}  Qa5 {[%clk 0:02:32]} 10. O-O {[%clk 0:02:59]}  e5 {[%clk 0:02:31]} 11. Bh2 {[%clk 0:03:00]}  e4 {[%clk 0:02:26]} 12. Nd2 {[%clk 0:02:58]}  d5 {[%clk 0:02:26]} 13. Rc1 {[%clk 0:02:52]}  Qd8 {[%clk 0:02:25]} 14. Qb3 {[%clk 0:02:35]}  Na5 {[%clk 0:02:18]} 15. Qa3 {[%clk 0:02:28]}  Bd7 {[%clk 0:01:42]} 16. Ncxe4 {[%clk 0:02:23]}  Nxe4 {[%clk 0:01:15]} 17. Nxe4 {[%clk 0:02:23]}  dxe4 {[%clk 0:00:58]} 18. Bc7 {[%clk 0:02:23]}  Qg5 {[%clk 0:00:58]} 19. Qxa5 {[%clk 0:02:23]}  b5 {[%clk 0:00:51]} 20. Rc5 {[%clk 0:02:10]}  Qh4 {[%clk 0:00:45]} 21. Bg3 {[%clk 0:02:02]}  Qd8 {[%clk 0:00:34]} 22. Qxd8 {[%clk 0:01:59]}  Rfxd8 {[%clk 0:00:35]} 23. Bxb5 {[%clk 0:01:52]}  Bf8 {[%clk 0:00:36]} 24. Rd5 {[%clk 0:01:52]}  Be6 {[%clk 0:00:34]} 25. Rxd8 {[%clk 0:01:49]}  Rxd8 {[%clk 0:00:35]} 26. Rc1 {[%clk 0:01:37]}  Bxa2 {[%clk 0:00:34]} 27. Ra1 {[%clk 0:01:37]}  Bd5 {[%clk 0:00:24]} 28. Rxa7 {[%clk 0:01:37]}  Rc8 {[%clk 0:00:21]} 29. Bc7 {[%clk 0:01:33]}  Bb4 {[%clk 0:00:15]} 30. Bd7 {[%clk 0:01:27]}  Rf8 {[%clk 0:00:15]} 31. Ra4 {[%clk 0:01:18]}  Be7 {[%clk 0:00:14]} 32. b4 {[%clk 0:01:02]}  Bb3 {[%clk 0:00:14]} 33. Ra7 {[%clk 0:01:03]}  Bd5 {[%clk 0:00:03]} 34. b5 {[%clk 0:01:01]}  Ra8 {[%clk 0:00:04]} 35. Rxa8+ {[%clk 0:00:56]}  Bxa8 {[%clk 0:00:05]} 36. Bc6 {[%clk 0:00:57]}  Bxc6 {[%clk 0:00:05]} 37. bxc6 {[%clk 0:00:58]}  Kf8 {[%clk 0:00:05]} 38. d5 {[%clk 0:00:56]}  Ke8 {[%clk 0:00:04]} 39. d6 {[%clk 0:00:55]} 1-0


[Site "https://www.chess.com"]

[Event "Titled Tuesday Blitz November 22 Late 2022"]
[White "Paravyan, David"]
[Black "Andreikin, Dmitry"]
[WhiteFideId "4194985"]
[BlackFideId "4158814"]
[WhiteElo "2546"]
[BlackElo "2736"]
[Result "1-0"]
[Round "11"]
[TimeControl "180+1"]
[Date "2022.11.23"]
[WhiteClock "0:00:05"]
[BlackClock "0:00:08"]

1. e4 {[%clk 0:03:00]}  c5 {[%clk 0:03:00]} 2. Nf3 {[%clk 0:03:01]}  Nc6 {[%clk 0:03:00]} 3. Nc3 {[%clk 0:03:00]}  e6 {[%clk 0:02:59]} 4. d4 {[%clk 0:03:00]}  cxd4 {[%clk 0:02:59]} 5. Nxd4 {[%clk 0:03:01]}  Qc7 {[%clk 0:02:59]} 6. Nxc6 {[%clk 0:03:01]}  bxc6 {[%clk 0:02:58]} 7. Bd3 {[%clk 0:02:40]}  Nf6 {[%clk 0:02:48]} 8. Qe2 {[%clk 0:02:40]}  Bd6 {[%clk 0:02:38]} 9. Rf1 {[%clk 0:02:28]}  Rb8 {[%clk 0:02:21]} 10. f4 {[%clk 0:02:18]}  e5 {[%clk 0:02:20]} 11. f5 {[%clk 0:02:11]}  Bc5 {[%clk 0:01:58]} 12. g4 {[%clk 0:02:11]}  h6 {[%clk 0:01:57]} 13. h4 {[%clk 0:01:34]}  h5 {[%clk 0:01:56]} 14. gxh5 {[%clk 0:01:34]}  Nxh5 {[%clk 0:01:55]} 15. Qg4 {[%clk 0:01:34]}  d6 {[%clk 0:01:49]} 16. Bd2 {[%clk 0:01:25]}  Bd4 {[%clk 0:01:35]} 17. b3 {[%clk 0:00:56]}  Kf8 {[%clk 0:01:12]} 18. O-O-O {[%clk 0:00:52]}  Nf6 {[%clk 0:01:12]} 19. Qg3 {[%clk 0:00:42]}  a5 {[%clk 0:00:46]} 20. Na4 {[%clk 0:00:32]}  Bd7 {[%clk 0:00:39]} 21. c3 {[%clk 0:00:23]}  Ba7 {[%clk 0:00:38]} 22. h5 {[%clk 0:00:13]}  Nxh5 {[%clk 0:00:30]} 23. Qf3 {[%clk 0:00:07]}  Nf6 {[%clk 0:00:29]} 24. Rh1 {[%clk 0:00:07]}  Ke7 {[%clk 0:00:29]} 25. Qg2 {[%clk 0:00:06]}  Rhg8 {[%clk 0:00:19]} 26. Bc4 {[%clk 0:00:03]}  d5 {[%clk 0:00:18]} 27. exd5 {[%clk 0:00:04]}  cxd5 {[%clk 0:00:18]} 28. Bxd5 {[%clk 0:00:03]}  Bd4 {[%clk 0:00:12]} 29. Nb2 {[%clk 0:00:01]}  a4 {[%clk 0:00:13]} 30. Nc4 {[%clk 0:00:01]}  axb3 {[%clk 0:00:12]} 31. axb3 {[%clk 0:00:01]}  Rxb3 {[%clk 0:00:12]} 32. cxd4 {[%clk 0:00:01]}  Bxf5 {[%clk 0:00:12]} 33. Bg5 {[%clk 0:00:01]}  Qb8 {[%clk 0:00:08]} 34. Bxf6+ {[%clk 0:00:02]}  gxf6 {[%clk 0:00:07]} 35. Qa2 {[%clk 0:00:03]}  Rc3+ {[%clk 0:00:04]} 36. Kd2 {[%clk 0:00:03]}  Rc2+ {[%clk 0:00:03]} 37. Qxc2 {[%clk 0:00:03]}  Bxc2 {[%clk 0:00:04]} 38. Kxc2 {[%clk 0:00:04]}  Qb4 {[%clk 0:00:04]} 39. dxe5 {[%clk 0:00:03]}  Rg3 {[%clk 0:00:03]} 40. exf6+ {[%clk 0:00:03]}  Kxf6 {[%clk 0:00:04]} 41. Rhf1+ {[%clk 0:00:03]}  Kg5 {[%clk 0:00:04]} 42. Rg1 {[%clk 0:00:02]}  Qb3+ {[%clk 0:00:03]} 43. Kc1 {[%clk 0:00:01]}  Qc3+ {[%clk 0:00:02]} 44. Kb1 {[%clk 0:00:02]}  Qb4+ {[%clk 0:00:02]} 45. Nb2 {[%clk 0:00:02]}  Rxg1 {[%clk 0:00:02]} 46. Rxg1+ {[%clk 0:00:03]}  Kf6 {[%clk 0:00:02]} 47. Rf1+ {[%clk 0:00:03]}  Ke5 {[%clk 0:00:02]} 48. Bc4 {[%clk 0:00:03]}  f5 {[%clk 0:00:01]} 49. Kc2 {[%clk 0:00:03]}  Kf6 {[%clk 0:00:01]} 50. Bd3 {[%clk 0:00:02]}  f4 {[%clk 0:00:01]} 51. Nc4 {[%clk 0:00:03]}  Kg5 {[%clk 0:00:01]} 52. Rg1+ {[%clk 0:00:03]}  Kf6 {[%clk 0:00:01]} 53. Rf1 {[%clk 0:00:03]}  Kg5 {[%clk 0:00:01]} 54. Nd2 {[%clk 0:00:04]}  Qc5+ {[%clk 0:00:01]} 55. Kd1 {[%clk 0:00:03]}  Qe3 {[%clk 0:00:01]} 56. Be2 {[%clk 0:00:02]}  Kf6 {[%clk 0:00:01]} 57. Rf3 {[%clk 0:00:03]}  Qd4 {[%clk 0:00:01]} 58. Rd3 {[%clk 0:00:02]}  Qa1+ {[%clk 0:00:01]} 59. Kc2 {[%clk 0:00:02]}  Qa4+ {[%clk 0:00:01]} 60. Nb3 {[%clk 0:00:02]}  Qa2+ {[%clk 0:00:01]} 61. Kd1 {[%clk 0:00:02]}  Ke5 {[%clk 0:00:02]} 62. Nc1 {[%clk 0:00:02]}  Qa4+ {[%clk 0:00:02]} 63. Rb3 {[%clk 0:00:03]}  Qd4+ {[%clk 0:00:01]} 64. Nd3+ {[%clk 0:00:03]}  Kf6 {[%clk 0:00:02]} 65. Rb4 {[%clk 0:00:02]}  Qg1+ {[%clk 0:00:02]} 66. Kc2 {[%clk 0:00:03]}  Qe3 {[%clk 0:00:02]} 67. Rxf4+ {[%clk 0:00:02]}  Kg5 {[%clk 0:00:02]} 68. Rg4+ {[%clk 0:00:03]}  Kf6 {[%clk 0:00:02]} 69. Bd1 {[%clk 0:00:03]}  Kf5 {[%clk 0:00:02]} 70. Rb4 {[%clk 0:00:02]}  Qe7 {[%clk 0:00:02]} 71. Rf4+ {[%clk 0:00:02]}  Kg5 {[%clk 0:00:02]} 72. Rg4+ {[%clk 0:00:03]}  Kf5 {[%clk 0:00:02]} 73. Rb4 {[%clk 0:00:04]}  Qc7+ {[%clk 0:00:01]} 74. Kd2 {[%clk 0:00:04]}  Qd6 {[%clk 0:00:01]} 75. Bg4+ {[%clk 0:00:03]}  Kf6 {[%clk 0:00:01]} 76. Be2 {[%clk 0:00:04]}  Kg7 {[%clk 0:00:01]} 77. Rg4+ {[%clk 0:00:04]}  Kf6 {[%clk 0:00:01]} 78. Rf4+ {[%clk 0:00:04]}  Kg7 {[%clk 0:00:01]} 79. Re4 {[%clk 0:00:03]}  Qb6 {[%clk 0:00:01]} 80. Rg4+ {[%clk 0:00:03]}  Kf6 {[%clk 0:00:01]} 81. Rb4 {[%clk 0:00:04]}  Qa5 {[%clk 0:00:01]} 82. Ke3 {[%clk 0:00:04]}  Kg7 {[%clk 0:00:01]} 83. Rg4+ {[%clk 0:00:04]}  Kf8 {[%clk 0:00:02]} 84. Rh4 {[%clk 0:00:05]}  Ke7 {[%clk 0:00:02]} 85. Re4+ {[%clk 0:00:05]}  Kf8 {[%clk 0:00:02]} 86. Re5 {[%clk 0:00:05]}  Qb6+ {[%clk 0:00:02]} 87. Kf3 {[%clk 0:00:05]}  Qf6+ {[%clk 0:00:02]} 88. Ke4 {[%clk 0:00:05]}  Qg6+ {[%clk 0:00:03]} 89. Rf5+ {[%clk 0:00:05]}  Ke7 {[%clk 0:00:03]} 90. Nf4 {[%clk 0:00:04]}  Qc6+ {[%clk 0:00:03]} 91. Nd5+ {[%clk 0:00:04]}  Kd8 {[%clk 0:00:02]} 92. Rf8+ {[%clk 0:00:04]}  Kd7 {[%clk 0:00:02]} 93. Bg4+ {[%clk 0:00:05]}  Kd6 {[%clk 0:00:03]} 94. Rf6+ {[%clk 0:00:05]}  Kc5 {[%clk 0:00:03]} 95. Rxc6+ {[%clk 0:00:06]}  Kxc6 {[%clk 0:00:04]} 96. Ke5 {[%clk 0:00:06]}  Kb5 {[%clk 0:00:04]} 97. Kd4 {[%clk 0:00:06]}  Kc6 {[%clk 0:00:05]} 98. Nc3 {[%clk 0:00:04]}  Kd6 {[%clk 0:00:04]} 99. Nb5+ {[%clk 0:00:05]}  Kc6 {[%clk 0:00:05]} 100. Kc4 {[%clk 0:00:05]}  Kb6 {[%clk 0:00:05]} 101. Bd7 {[%clk 0:00:06]}  Ka5 {[%clk 0:00:04]} 102. Nd6 {[%clk 0:00:05]}  Kb6 {[%clk 0:00:05]} 103. Ne8 {[%clk 0:00:05]}  Ka5 {[%clk 0:00:04]} 104. Kc5 {[%clk 0:00:06]}  Ka6 {[%clk 0:00:05]} 105. Nc7+ {[%clk 0:00:05]}  Ka5 {[%clk 0:00:05]} 106. Nd5 {[%clk 0:00:06]}  Ka6 {[%clk 0:00:05]} 107. Ne3 {[%clk 0:00:05]}  Ka5 {[%clk 0:00:04]} 108. Nc4+ {[%clk 0:00:05]}  Ka6 {[%clk 0:00:05]} 109. Bc6 {[%clk 0:00:06]}  Ka7 {[%clk 0:00:05]} 110. Nd6 {[%clk 0:00:05]}  Kb8 {[%clk 0:00:04]} 111. Ne8 {[%clk 0:00:02]}  Kc8 {[%clk 0:00:04]} 112. Kd6 {[%clk 0:00:03]}  Kd8 {[%clk 0:00:05]} 113. Nc7 {[%clk 0:00:03]}  Kc8 {[%clk 0:00:05]} 114. Nb5 {[%clk 0:00:03]}  Kd8 {[%clk 0:00:06]} 115. Nd4 {[%clk 0:00:04]}  Kc8 {[%clk 0:00:06]} 116. Ne6 {[%clk 0:00:03]}  Kb8 {[%clk 0:00:06]} 117. Kc5 {[%clk 0:00:03]}  Ka7 {[%clk 0:00:05]} 118. Kb5 {[%clk 0:00:04]}  Kb8 {[%clk 0:00:05]} 119. Ka6 {[%clk 0:00:03]}  Kc8 {[%clk 0:00:06]} 120. Kb6 {[%clk 0:00:04]}  Kb8 {[%clk 0:00:06]} 121. Bd7 {[%clk 0:00:04]}  Ka8 {[%clk 0:00:06]} 122. Nc7+ {[%clk 0:00:05]}  Kb8 {[%clk 0:00:07]} 123. Na6+ {[%clk 0:00:06]}  Ka8 {[%clk 0:00:08]} 124. Bc6# {[%clk 0:00:05]} 1-0


[Site "https://www.chess.com"]

[Event "Titled Tuesday Blitz November 22 Late 2022"]
[White "Polster, Christian"]
[Black "monkins"]
[WhiteFideId "12965081"]
[WhiteElo "2209"]
[BlackElo "2248"]
[Result "1-0"]
[Round "11"]
[TimeControl "180+1"]
[Date "2022.11.23"]
[WhiteClock "0:00:04"]
[BlackClock "0:00:01"]

1. e4 {[%clk 0:03:00]}  c6 {[%clk 0:02:58]} 2. d4 {[%clk 0:02:51]}  d5 {[%clk 0:02:59]} 3. Nc3 {[%clk 0:02:50]}  dxe4 {[%clk 0:02:58]} 4. Nxe4 {[%clk 0:02:51]}  Nf6 {[%clk 0:02:58]} 5. Nxf6+ {[%clk 0:02:51]}  exf6 {[%clk 0:02:59]} 6. c3 {[%clk 0:02:40]}  Bd6 {[%clk 0:02:59]} 7. Bd3 {[%clk 0:02:41]}  O-O {[%clk 0:02:58]} 8. Ne2 {[%clk 0:02:41]}  Re8 {[%clk 0:02:53]} 9. O-O {[%clk 0:02:41]}  Nd7 {[%clk 0:02:53]} 10. Bf4 {[%clk 0:02:40]}  Nf8 {[%clk 0:02:51]} 11. Bxd6 {[%clk 0:02:38]}  Qxd6 {[%clk 0:02:52]} 12. Re1 {[%clk 0:02:37]}  Bg4 {[%clk 0:02:47]} 13. h3 {[%clk 0:02:28]}  Bh5 {[%clk 0:02:43]} 14. Qd2 {[%clk 0:02:19]}  a5 {[%clk 0:02:28]} 15. Ng3 {[%clk 0:02:11]}  Bg6 {[%clk 0:02:26]} 16. Nf5 {[%clk 0:02:05]}  Bxf5 {[%clk 0:02:21]} 17. Bxf5 {[%clk 0:02:04]}  Qd5 {[%clk 0:02:04]} 18. Bg4 {[%clk 0:01:43]}  Qd6 {[%clk 0:01:34]} 19. Rxe8 {[%clk 0:01:37]}  Rxe8 {[%clk 0:01:08]} 20. Re1 {[%clk 0:01:38]}  Re7 {[%clk 0:01:00]} 21. Rxe7 {[%clk 0:01:31]}  Qxe7 {[%clk 0:01:01]} 22. Qe2 {[%clk 0:01:27]}  Qxe2 {[%clk 0:00:38]} 23. Bxe2 {[%clk 0:01:28]}  Nd7 {[%clk 0:00:35]} 24. Bg4 {[%clk 0:01:13]}  Nb6 {[%clk 0:00:34]} 25. Kf1 {[%clk 0:01:09]}  Kf8 {[%clk 0:00:30]} 26. Ke2 {[%clk 0:01:08]}  Ke7 {[%clk 0:00:30]} 27. Kd3 {[%clk 0:01:07]}  g6 {[%clk 0:00:27]} 28. c4 {[%clk 0:01:05]}  f5 {[%clk 0:00:26]} 29. Bd1 {[%clk 0:01:03]}  Nd7 {[%clk 0:00:20]} 30. Bf3 {[%clk 0:00:48]}  Kd6 {[%clk 0:00:17]} 31. a3 {[%clk 0:00:29]}  b6 {[%clk 0:00:16]} 32. b4 {[%clk 0:00:22]}  axb4 {[%clk 0:00:16]} 33. axb4 {[%clk 0:00:21]}  c5 {[%clk 0:00:17]} 34. dxc5+ {[%clk 0:00:20]}  bxc5 {[%clk 0:00:17]} 35. b5 {[%clk 0:00:20]}  Nb6 {[%clk 0:00:16]} 36. Bc6 {[%clk 0:00:19]}  h6 {[%clk 0:00:14]} 37. f4 {[%clk 0:00:16]}  g5 {[%clk 0:00:13]} 38. g3 {[%clk 0:00:17]}  f6 {[%clk 0:00:13]} 39. h4 {[%clk 0:00:17]}  gxf4 {[%clk 0:00:12]} 40. gxf4 {[%clk 0:00:17]}  Nc8 {[%clk 0:00:11]} 41. Kc3 {[%clk 0:00:16]}  Ne7 {[%clk 0:00:10]} 42. Be8 {[%clk 0:00:14]}  Nc8 {[%clk 0:00:10]} 43. Kb3 {[%clk 0:00:13]}  Kc7 {[%clk 0:00:10]} 44. Ka4 {[%clk 0:00:12]}  Nd6 {[%clk 0:00:09]} 45. Bg6 {[%clk 0:00:08]}  Nxc4 {[%clk 0:00:08]} 46. Bxf5 {[%clk 0:00:08]}  Nd6 {[%clk 0:00:08]} 47. Bd3 {[%clk 0:00:06]}  Kb6 {[%clk 0:00:08]} 48. Be2 {[%clk 0:00:06]}  c4 {[%clk 0:00:06]} 49. Kb4 {[%clk 0:00:06]}  Nxb5 {[%clk 0:00:06]} 50. Kxc4 {[%clk 0:00:05]}  Nc7 {[%clk 0:00:05]} 51. Kd4 {[%clk 0:00:05]}  Kc6 {[%clk 0:00:05]} 52. Ke4 {[%clk 0:00:05]}  Kd6 {[%clk 0:00:04]} 53. Kf5 {[%clk 0:00:06]}  Ke7 {[%clk 0:00:04]} 54. Bc4 {[%clk 0:00:04]}  Ne8 {[%clk 0:00:02]} 55. Kg6 {[%clk 0:00:04]}  Nd6 {[%clk 0:00:02]} 56. Bd3 {[%clk 0:00:05]}  Nf7 {[%clk 0:00:02]} 57. Bc4 {[%clk 0:00:05]}  Nd6 {[%clk 0:00:02]} 58. Bd5 {[%clk 0:00:05]}  Nb5 {[%clk 0:00:02]} 59. Kxh6 {[%clk 0:00:05]}  Nc7 {[%clk 0:00:02]} 60. Bc4 {[%clk 0:00:05]}  Kf8 {[%clk 0:00:02]} 61. Kg6 {[%clk 0:00:05]}  Ne8 {[%clk 0:00:02]} 62. h5 {[%clk 0:00:05]}  Nd6 {[%clk 0:00:01]} 63. Bd5 {[%clk 0:00:04]} 1-0


[Site "https://www.chess.com"]